Cogmind - Beta 15 @@@ ROGUE MODE // 2025.05.10 @ 21:03:09 Player: k1ll3rb0t Result: Destroyed by S-10 Pest with Light Assault Rifle Performance ------------- Evolutions (0) 0 Regions Visited (2) 400 Robots Destroyed (5) 25 Value Destroyed (41) 41 Prototype IDs (0) 0 Alien Tech Used (0) 0 Bonus (0) 0 TOTAL SCORE: 466 Bonus ------- None Cogmind --------- Core Integrity 0/250 Matter 286/300 Energy 125/125 System Corruption 0% Temperature Cool (30) Movement Rolling (80) Location -10/Mines Parts ------- > --- POWER (1) -------- Light Ion Engine > --- PROPULSION (2) --- Aluminum Leg Wheel > --- UTILITY (2) ------ Seismic Detector Core Shielding > --- WEAPON (2) ------- Salvaging Laser > --- INVENTORY (5) ---- Ion Engine Flight Unit Improved Terrain Scanner Datajack Mining Laser Peak State ------------ > --- POWER ------------ Light Ion Engine > --- PROPULSION ------- Aluminum Leg Hover Unit > --- UTILITY ---------- Seismic Detector Hacking Suite > --- WEAPON ----------- Salvaging Laser Salvaging Laser > --- INVENTORY -------- Ion Engine Improved Terrain Scanner Datajack Mining Laser [Rating: 9] Favorites ----------- Power Ion Engine Engine Ion Engine Propulsion Light Treads Treads Light Treads Leg Aluminum Leg Wheel Wheel Hover Unit Hover Unit Utility Small Storage Unit Device Seismic Detector Storage Small Storage Unit Hackware Hacking Suite Protection Core Shielding Weapon Assault Rifle Energy Gun Salvaging Laser Ballistic Gun Assault Rifle Special Melee Weapon Datajack Build | -11 -10 -10 ------- Run | Yrd Mat Min Slots Evolved . | . . . Power . | . . . Propulsion . | . . . Utility . | . . . Weapon . | . . . Parts Attached 19 | 9 7 3 Power 4 | 3 . 1 Engine 4 | 3 . 1 Core . | . . . Reactor . | . . . Propulsion 6 | 3 2 1 Treads 2 | 2 . . Leg 2 | 1 1 . Wheel 1 | . . 1 Hover 1 | . 1 . Flight . | . . . Utility 4 | 1 2 1 Device 1 | . 1 . Storage 1 | 1 . . Processor . | . . . Hackware 1 | . 1 . Protection 1 | . . 1 Artifact . | . . . Weapon 5 | 2 3 . Energy Gun 2 | . 2 . Energy Cannon . | . . . Ballistic Gun 2 | 2 . . Ballistic Cannon . | . . . Launcher . | . . . Special Weapon . | . . . Impact Weapon . | . . . Slashing Weapon . | . . . Piercing Weapon . | . . . Special Melee Weapon 1 | . 1 . Unidentified Prototypes . | . . . Parts Lost 8 | 7 . 1 Power 2 | 2 . . Propulsion 3 | 3 . . Utility . | . . . Weapon 3 | 2 . 1 Highest Loss Streak 7 | 7 . 1 To Critical Strikes 1 | . . 1 Average Backups 6 | 6 3 5 Power 1 | 1 . 1 Propulsion 1 | 1 . 1 Utility 1 | 1 1 1 Weapon . | . 1 1 Tool/Special . | . . . Unused Backups 3 | . . 3 Power 1 | . . 1 Propulsion . | . . . Utility 1 | . . 1 Weapon 1 | . . 1 Tool/Special . | . . . Average Slot Usage (%) 80 | . 63 100 Engine 14 | . 14 14 Leg 12 | . 12 14 Wheel 2 | . . 5 Hover 6 | . 5 8 Device 12 | . 12 14 Hackware 6 | . 12 1 Protection 6 | . . 12 Energy Gun 17 | . 7 28 Peak Build Rating 9 | 6 9 9 Average Rating 5 | 5 6 6 On Entrance 3 | . 1 9 Naked Turns . | . . . Heaviest Build 13 | 13 6 7 Greatest Support 40 | 40 6 10 Greatest Overweight (x) 1 | . 1 1 Average Overweight (x) . | . . . Largest Inventory Capacity 8 | 8 5 5 Average Capacity 7 | 7 5 5 Most Carried 7 | 7 5 5 Average Carried 6 | 6 3 5 Final Capacity 5 | 5 5 5 Final Carried 5 | 4 5 5 Class Distribution -------------------- 94% | Mutant 5% | Scavenger-Mutant Dominant Class ---------------- Mutant | -10/Materials Scavenger-Mutant | -10/Mines Resources | -11 -10 -10 ----------- Run | Yrd Mat Min Matter Collected 364 | 262 76 26 Remotely . | . . . Salvage Created 107 | 41 20 46 Parts 19 | 9 4 6 Haulers Intercepted . | . . . Recyclers Shooed . | . . . Parts Field Recycled . | . . . Retrieved Matter . | . . . Parts Self-Destructed . | . . . Prevented . | . . . Kills | -11 -10 -10 ------- Run | Yrd Mat Min Combat Hostiles Destroyed 2 | . 1 1 Guns 2 | . 1 1 Classes Destroyed 2 | 1 1 . Tunneler 3 | 2 . 1 Swarmer 2 | . 1 1 Best Kill Streak 1 | 1 1 1 Combat Bots Only 1 | . 1 1 Max Kills in Single Turn 1 | 1 1 1 Gunslinging . | . . . Exploded . | . . . Melee . | . . . Uniques/NPCs Destroyed . | . . . Combat | -11 -10 -10 -------- Run | Yrd Mat Min Hostile Shots Fired 47 | 21 15 11 Missed 8 | 1 4 3 Hits 39 | 20 11 8 Projectile 39 | 20 11 8 AOE 21 | 21 . . Critical Strikes 1 | . . 1 Damage Taken 1079 | 863 148 68 Core 250 | 201 36 13 Absorbed by Shields . | . . . Redirected to Shielding 2 | . . 2 Core Remaining (%) 19 | 19 . . Volleys Fired 20 | 7 6 7 Largest 2 | 2 2 2 Hottest 60 | 40 60 60 Shots Fired 37 | 14 12 11 Gun 37 | 14 12 11 Cannon . | . . . Launcher . | . . . Special . | . . . Kinetic 14 | 14 . . Thermal 23 | . 12 11 Explosive . | . . . Electromagnetic . | . . . Robot Hit Streak 10 | 6 9 10 Robot Miss Streak 4 | 3 1 4 Penetration Max . | . . . Secondary Targets . | . . . Shots Hit Robots 24 | 8 10 6 Core Hits 10 | 4 3 3 Critical Kills . | . . . Critical Parts Destroyed . | . . . Critical Strikes . | . . . Melee Attacks . | . . . Impact . | . . . Slashing . | . . . Piercing . | . . . Sneak Attacks . | . . . Combat Hostiles . | . . . Follow-up Attacks . | . . . Damage Inflicted 241 | 96 91 54 Guns 241 | 96 91 54 Cannons . | . . . Explosions . | . . . Melee . | . . . Ramming . | . . . Kinetic 96 | 96 . . Thermal 145 | . 91 54 Explosive . | . . . Electromagnetic . | . . . Impact . | . . . Slashing . | . . . Piercing . | . . . Highest Corruption . | . . . Average Corruption . | . . . Corruption Purged . | . . . Corruption Blocked . | . . . Overload Shots . | . . . Overflow Damage . | . . . Projectiles . | . . . Explosions . | . . . Melee . | . . . Knockbacks . | . . . Impact . | . . . Kinetic . | . . . Secondary . | . . . Self-Inflicted Damage . | . . . Shots . | . . . Rammed . | . . . Targets Rammed . | . . . Kicked . | . . . Crushed . | . . . Highest Temperature 157 | . 157 40 Average Temperature 56 | . 83 19 Received Heat Transfer 75 | . 75 . Siege Activations . | . . . Martial Activations . | . . . Shielding Activations . | . . . Robots Disrupted . | . . . Combat Hostiles . | . . . Robots Corrupted . | . . . Combat Hostiles . | . . . Parts Fried . | . . . Impact Corruptions . | . . . Robots Melted . | . . . Combat Hostiles . | . . . Parts Melted . | . . . Heat Transferred 400 | . 250 150 Parts Sabotaged . | . . . Parts Stolen . | . . . Parts Stripped . | . . . Power Chain Reactions . | . . . Alert | -11 -10 -10 ------- Run | Yrd Mat Min Maximum Alert Level . | . . . Low Security (%) 100 | 100 100 100 Level 1 . | . . . Level 2 . | . . . Level 3 . | . . . Level 4 . | . . . Level 5 . | . . . High Security . | . . . Max Security . | . . . Peak Influence 30 | 5 10 30 Initial . | . . . Average . | . 1 . Influence Increases 65 | 10 20 35 Destroy 0b10 Robot/C 40 | . 20 20 Destroy 0b10 Robot/NC 15 | 10 . 5 Destroy Leader 10 | . . 10 Influence Decreases 35 | 10 20 5 Time Decay 35 | 10 20 5 Squads Dispatched 1 | . 1 . Investigation . | . . . Extermination . | . . . Reinforcement 1 | . 1 . Assault . | . . . Garrison . | . . . Intercept . | . . . Searches Triggered . | . . . Construction Impeded . | . . . Haulers Reinforced . | . . . Active Scanning Responses . | . . . Cargo Convoy Interrupts . | . . . Stealth | -11 -10 -10 --------- Run | Yrd Mat Min Distress Signals 1 | . 1 . Communications Jammed . | . . . Distress Signals . | . . . Times Spotted 10 | 2 5 3 Peak Tracking Total 3 | 2 3 3 Tactical Retreats . | . . . Traps | -11 -10 -10 ------- Run | Yrd Mat Min Traps Triggered . | . . . Indirectly . | . . . Trap Hack Attempts . | . . . Triggered . | . . . Disarmed . | . . . Reprogrammed . | . . . Reused . | . . . Traps Extracted . | . . . Installed . | . . . Triggered . | . . . Machines | -11 -10 -10 ---------- Run | Yrd Mat Min Machines Disabled . | . . . Max in Single Turn . | . . . Machines Repaired . | . . . Machines Dismantled . | . . . Machines Sabotaged . | . . . Overloaded Fab Kills . | . . . Hacking | -11 -10 -10 --------- Run | Yrd Mat Min Machines Accessed 1 | . 1 . Terminals 1 | . 1 . Fabricators . | . . . Repair Stations . | . . . Recycling Units . | . . . Scanalyzers . | . . . Garrison Access . | . . . Total Hacks 4 | . 4 . Successful 1 | . 1 . Failed 3 | . 3 . Catastrophic . | . . . Database Lockouts . | . . . Manual 2 | . 2 . Terminals 4 | . 4 . Fabricators . | . . . Repair Stations . | . . . Recycling Units . | . . . Scanalyzers . | . . . Garrison Access . | . . . Terminal Hacks 1 | . 1 . Registered Components 1 | . 1 . Fabricator Hacks . | . . . Repair Station Hacks . | . . . Recycling Unit Hacks . | . . . Scanalyzer . | . . . Garrison Access Hacks . | . . . Unauthorized Hacks . | . . . Terminals . | . . . Fabricators . | . . . Repair Stations . | . . . Recycling Units . | . . . Scanalyzers . | . . . Garrison Access . | . . . Data Cores Recovered 1 | . 1 . Used . | . . . Hacking Detections 1 | . 1 . Full Trace Events . | . . . Feedback Events . | . . . Feedback Blocked . | . . . Robot Schematics Acquired . | . . . Robots Built . | . . . Authchips . | . . . Time . | . . . Total Robot Build Rating . | . . . Part Schematics Acquired . | . . . Parts Built . | . . . Authchips . | . . . Time . | . . . Total Part Build Rating . | . . . Parts Repaired . | . . . Time . | . . . Parts Recycled . | . . . Recycled Matter . | . . . Retrieved Matter . | . . . Retrieved Components . | . . . Parts Scanalyzed . | . . . Part Schematics Acquired . | . . . Parts Damaged . | . . . Bothacking | -11 -10 -10 ------------ Run | Yrd Mat Min Used RIF Installer . | . . . Robots Hacked . | . . . Non-combat . | . . . Combat . | . . . Robot Hacks Applied . | . . . Relay Couplers Released . | . . . Fabnet Peak Effective % . | . . . Robots Rewired . | . . . Allies Hacked . | . . . Hacks Repelled . | . . . Allies | -11 -10 -10 -------- Run | Yrd Mat Min Total Allies . | . . . Largest Group . | . . . Highest-Rated Group . | . . . Highest-Rated Ally . | . . . Total Orders . | . . . Ally Attacks . | . . . Total Damage . | . . . Kills . | . . . Allies Corrupted . | . . . Allies Melted . | . . . Intel | -11 -10 -10 ------- Run | Yrd Mat Min Active Infowar (turns) 239 | . 114 125 Seismic 239 | . 114 125 Robot Analysis Total . | . . . Derelict Logs Recovered . | . . . Drone Launches . | . . . Drone Recoveries . | . . . Exploration | -11 -10 -10 ------------- Run | Yrd Mat Min Turns Passed 3094 | 2847 122 125 Spaces Moved 1287 | 1076 105 106 Core 91 | 22 69 . Treads 1052 | 1052 . . Legs 52 | 2 . 50 Wheels 50 | . . 50 Hover 42 | . 36 6 Flight . | . . . Fastest Speed 50 | 50 50 70 Average Speed 147 | 157 87 99 Slowest Speed 160 | 160 100 130 Overloaded Moves . | . . . Propulsion Burnouts . | . . . Robots Hopped . | . . . Potential Cave-ins . | . . . Cave-ins Triggered . | . . . Exploration Rate (%) 42 | 77 25 25 Regions Visited 2 Branch Regions 1 Pre-discovered Areas . | . . . Known Exits Taken . | . . . Unknown Exits Taken 2 | 1 1 . Scrap Searched . | . . . Spaces Dug . | . . . Terrain Destroyed . | . . . Melee . | . . . Projectile . | . . . AOE . | . . . Terrain Rammed . | . . . Walls Destroyed . | . . . Machines Disabled . | . . . Actions | -11 -10 -10 --------- Run | Yrd Mat Min Total 2458 | 2211 127 120 Wait 1116 | 1111 4 1 Move 1285 | 1075 104 106 Hop . | . . . Pick Up 13 | 8 5 . Fast Attach 9 | 5 2 2 Attach 9 | 4 5 . Detach 1 | . 1 . Swap 1 | . . 1 Drop 4 | 1 . 3 Fire 20 | 7 6 7 Melee . | . . . Ram . | . . . Kick . | . . . Crush . | . . . Escape Stasis . | . . . Rewire . | . . . Trap . | . . . Miscellaneous . | . . . Route ------- -11/Scrapyard -10/Materials -10/Mines History --------- Turn | Location | Event 27 | -11/Scrapyard | Discovered new exit (range 15) 2802 | -11/Scrapyard | Assembled infested the area 2838 | -11/Scrapyard | Core integrity fell below 50% 2841 | -11/Scrapyard | Core integrity fell below 20% 2848 | -11/Scrapyard | Entered Materials 2849 | -10/Materials | Met a group of wandering Federalists 2869 | -10/Materials | Lost 7 parts (2p3n2w) 2877 | -10/Materials | Build established: Mutant 2902 | -10/Materials | Discovered new exit (range 16) 2970 | -10/Materials | Lost 5 allies 2970 | -10/Materials | Entered Mines 3095 | -10/Mines | Destroyed by S-10 Pest with Light Assault Rifle Last Messages --------------- 02949_ K-01 Serf collects debris. 02950_ Acquired Flight Unit. 02952_ K-01 Serf collects debris. 02970_ Acquired 5 matter. LOCATION=UNKNOWN GOAL=ESCAPE Something is scanning the area. 02973_ Discarded Hacking Suite. 02974_ Acquired Core Shielding. 03012_ T-07 Excavator is excavating. 03040_ T-07 Excavator destroyed. 03042_ Acquired 25 matter. 03044_ Dropped Hover Unit. 03045_ Acquired Wheel. 03046_ Acquired 1 matter. 03048_ Dropped Lgt. Ion Engine. 03061_ K-01 Serf collects debris. 03090_ Critical hit (Destroy). 03090_ Salvaging Laser destroyed. 03094_ S-10 Pest destroyed. Map ----- +----------------------------------------------------+ | ?????????????????????????????????? | | ?????????????????????????????????? | | ?????????????????????????????????? | | ?????????????????????????????????? | | ?????????????????????????????????? | | ?????????????????????????????????? | | ?????????????????????????????????? | | ?????????????????????????????????? | | ?????????????????????????????????? | | ?????????????????????????????????? | | ?????????????????????????????????? | | ???????????????????????????#?????? | | ??????????????????????????? #????? | | ??????????????????????????? ????? | | ??????????????????????????? ????? | | ??????????????????????????? ##??? | | ??????????????????????????? #??? | | ??????????????????????????? #??? | | ???????????????????????????# #??? | | ???????????????????????????# #??? | | ???????????????????????????# $#??? | | ???????????????????????????# #??? | | ???????????????????????????# #??? | | ???????????????????????????# #??? | | ???????????################# #??? | | ???????????# @=%[ #??? | | ???????????# ss #??? | | ???????????# ### ######## #?? | | ???????????# ?## ####???# #?? | | ???????????# ## ##??## #?? | | ???????????# # ##??# #?? | | ??????????## #??## ##?? | | ?????????## #???####??? | | ?????????# ##?????????? | | ??###????# ####??????????? | | ?? #????#### ##?????????????? | | ??# #???????## #??????????????? | | ??# #????????# ##??????????????? | | ??# #??####### ##???????????????? | | ??# #?## ## #????????????????? | | ??# ### #????????????????? | | ?## #????????????????? | | ## #????????????????? | | ## ##????????????????? | | ###### ##?????????????????? | | ##???## ##??????????????????? | | #???## ##???????????????????? | | ##?## ######???????????????? | | !### ##??????????????? | | ##?????????????? | +----------------------------------------------------+ Best States ------------- Heat Dissipation 25 Energy Generation 10 Energy Capacity 250 Matter Stores 300 Matter Capacity 300 Sight Range 16 Terrain Scan Density 10 Core Shielding 20 Evasion (%) 55 Recoil Reduction 2 Offensive Hacking 10 Item Schematics ----------------- None Robot Schematics ------------------ None Fabricated ------------ Nothing Repaired ---------- Nothing Alien Tech Used ----------------- None Achievements -------------- Curiosity Killed The Cat Challenges ------------ None Game ------ Seed StealthSmartPick Manual? 0 Play Time 00:13:10 Cumulative 92.9 hours Start 2025.05.10 @ 20:50:11 End 2025.05.10 @ 21:03:09 Sessions 1 Manual Loads 0 Difficulty Rogue Special Mode None Game No. 34 Rogue 34 Adventurer 0 Explorer 0 Win Type - Total 2 Types 2/0/0/0/0/0/0/0/0/0 Lore% 36 Gallery% 47 Achievement% 42 Wizard Run 0 Options --------- Layout 1 ASCII 0 Keyboard 0 Movement Mouse Keybinds 0 Fullscreen 1 Font 32/SmallcapsGlow Map View 50x35 Zoom Use 0% Tactical HUD 1 Map Filters NONE Filters NONE Steam 1 RUN: 8ac91203-7204-463d-a812-98cc0e6fca61